bitfinex/quotes_BTCUSD_20241216
["timestamp","ask_amount","ask_price","bid_price","bid_amount"]
[1734363833448,0.20108884,106230.0,106220.0,0.63971686]
[1734363833960,0.20117524,106230.0,106220.0,0.63971686]
[1734363834189,0.10216412,106230.0,106220.0,0.63971686]
[1734363834463,0.18646497,106230.0,106220.0,0.63971686]
[1734363835002,0.18646497,106230.0,106220.0,0.66972608]
[1734363835244,0.56440782,106230.0,106220.0,0.66972608]
[1734363835492,8.64e-05,106230.0,106220.0,0.66972608]
[1734363836024,0.08435609,106230.0,106220.0,0.66972608]
[1734363836521,0.08435612,106230.0,106220.0,0.66972608]
[1734363836765,0.16862584,106230.0,106220.0,0.66972608]
[1734363837006,0.16862584,106230.0,106220.0,1.46419608]
[1734363837248,0.25288698,106230.0,106220.0,1.46419608]
[1734363837496,0.08434754,106230.0,106220.0,1.46419608]
[1734363837733,0.08434754,106230.0,106220.0,1.43418686]
[1734363838456,0.08434754,106230.0,106220.0,1.22416986]
[1734363838704,0.08437147,106230.0,106220.0,1.79347786]
[1734363839213,0.08437147,106230.0,106220.0,1.25578586]
[1734363839456,0.08437147,106230.0,106220.0,0.63971686]
[1734363840429,0.25294162,106230.0,106220.0,0.63971686]
[1734363840680,0.25281735,106230.0,106220.0,1.11041686]
[1734363841245,0.1685737,106230.0,106220.0,1.11041686]
[1734363841504,0.37918283,106230.0,106220.0,1.11041686]
[1734363842173,0.1685737,106230.0,106220.0,1.11041686]
[1734363843172,0.2949387,106230.0,106220.0,1.11041686]
[1734363843413,0.50554324,106230.0,106220.0,1.69398986]
[1734363844155,0.37916962,106230.0,106220.0,1.69398986]
[1734363844955,0.69014104,106230.0,106220.0,1.69398986]
[1734363845442,0.21068819,106230.0,106220.0,1.69398986]
[1734363845654,0.52166411,106230.0,106220.0,1.69398986]
[1734363845867,0.21068819,106230.0,106220.0,1.28633486]
[1734363846084,0.52166252,106230.0,106220.0,1.11041686]
[1734363846302,8.64e-05,106230.0,106220.0,0.98181686]
[1734363846505,0.25280855,106230.0,106220.0,0.88752616]
[1734363846712,0.31108108,106230.0,106220.0,0.88752616]
[1734363847386,0.56380323,106230.0,106220.0,0.88752616]
[1734363848015,0.25280855,106230.0,106220.0,0.88752616]
[1734363848257,0.02007718,106230.0,106220.0,0.88752616]
[1734363848520,0.3044488,106230.0,106220.0,0.41749814]
[1734363848772,0.58388981,106230.0,106220.0,0.56749814]
[1734363849013,0.27285482,106230.0,106220.0,0.5759241]
[1734363849260,0.02007718,106230.0,106220.0,0.4259241]
[1734363850021,0.02007718,106230.0,106220.0,0.41749814]
[1734363850731,0.25286404,106230.0,106220.0,0.41749814]
[1734363850942,0.65821265,106230.0,106220.0,0.41749814]
[1734363851155,0.0943771,106230.0,106220.0,0.41749814]
[1734363851372,0.65939689,106230.0,106220.0,0.41749814]
[1734363851584,0.0943771,106230.0,106220.0,0.41749814]
[1734363852678,0.09555383,106230.0,106220.0,0.41749814]
[1734363853323,0.6594516,106230.0,106220.0,0.41749814]
[1734363853553,0.3471865,106230.0,106220.0,0.41749814]
[1734363855962,0.6137865,106230.0,106220.0,0.41749814]
[1734363856199,0.6868153,106230.0,106220.0,0.41749814]
[1734363856413,0.6128771,106230.0,106220.0,0.41749814]
[1734363856626,0.3462771,106230.0,106220.0,0.36477385]
[1734363856851,0.53072007,106230.0,106220.0,0.36477385]
[1734363857077,0.53072007,106230.0,106220.0,0.0001728]
[1734363857307,0.1761771,106230.0,106220.0,0.0001728]
[1734363857563,0.02007718,106230.0,106220.0,0.0001728]
[1734363857783,0.58398619,106230.0,106220.0,0.0001728]
[1734363858001,0.27290287,106230.0,106220.0,0.0001728]
[1734363858426,0.01999078,106220.0,106200.0,0.22555564]
[1734363858630,0.21068652,106210.0,106200.0,0.22555564]
[1734363858836,0.52177834,106210.0,106200.0,1.21643264]
[1734363860301,0.27281461,106220.0,106200.0,0.94908364]
[1734363860510,0.52217588,106210.0,106200.0,0.22555564]
[1734363860712,0.27281461,106220.0,106200.0,0.77030464]
[1734363860897,0.52221993,106210.0,106200.0,0.22555564]
[1734363861135,0.01999078,106220.0,106200.0,0.99958764]
[1734363861341,0.21087535,106210.0,106200.0,0.22555564]
[1734363861548,0.27304121,106220.0,106200.0,0.22555564]
[1734363861970,0.52206608,106210.0,106200.0,0.22555564]
[1734363862178,0.27304121,106220.0,106200.0,0.22555564]
[1734363862389,0.52208016,106210.0,106200.0,0.22555564]
[1734363862596,0.27304121,106220.0,106200.0,0.22555564]
[1734363862813,0.52207896,106210.0,106200.0,0.23446704]
[1734363863020,0.27304121,106220.0,106200.0,0.23446704]
[1734363863226,0.31127103,106210.0,106200.0,0.23446704]
[1734363863432,0.21075141,106210.0,106200.0,0.23446704]
[1734363863867,0.52194203,106210.0,106200.0,0.23446704]
[1734363866688,0.37938289,106210.0,106180.0,0.03809365]
[1734363866896,0.21076506,106200.0,106190.0,0.5458447]
[1734363867323,0.37937968,106200.0,106190.0,0.0942907]
[1734363867565,0.21076506,106200.0,106190.0,0.0942907]
[1734363867776,0.21076506,106200.0,106180.0,0.00870551]
[1734363867982,0.08430602,106190.0,106180.0,0.65939021]
[1734363868161,0.08430602,106190.0,106180.0,0.6506847]
[1734363868601,0.08430994,106190.0,106180.0,0.6506847]
[1734363868836,0.08430994,106190.0,106180.0,0.0942907]
[1734363869054,0.08430994,106190.0,106170.0,0.0001726]
[1734363869265,0.08430994,106190.0,106170.0,0.0944633]
[1734363869731,0.21077485,106190.0,106180.0,0.208544]
[1734363869950,0.08430994,106190.0,106180.0,0.208544]
[1734363870218,0.08430994,106190.0,106170.0,0.2326083]
[1734363870471,0.56413899,106190.0,106180.0,0.198844]
[1734363870712,0.08433545,106190.0,106180.0,0.198844]
[1734363870960,0.21083862,106190.0,106170.0,0.2326083]
[1734363872319,0.21083862,106180.0,106170.0,0.2326083]
[1734363872525,0.21075688,106190.0,106170.0,0.3435743]
[1734363872773,0.21075688,106190.0,106170.0,0.2326083]
[1734363872981,0.21075688,106190.0,106170.0,0.1383176]
[1734363872982,0.26075688,106190.0,106170.0,0.1383176]
[1734363875374,0.26071691,106190.0,106170.0,0.1383176]
[1734363875593,0.52194566,106180.0,106170.0,0.1383176]
[1734363875803,0.2607169,106190.0,106170.0,2.2457326]
[1734363876011,0.2607169,106190.0,106170.0,0.1383176]
[1734363876419,0.05,106190.0,106170.0,0.1383176]
[1734363876628,0.42926586,106190.0,106170.0,0.1383176]
[1734363876838,0.42926586,106190.0,106170.0,0.16121118]
[1734363877138,0.42926586,106190.0,106170.0,0.1383176]
[1734363877570,0.26070325,106190.0,106170.0,0.1383176]
[1734363878009,0.42926586,106190.0,106170.0,0.1383176]
[1734363878214,0.26070325,106190.0,106140.0,0.023]
[1734363878425,0.26070325,106190.0,106150.0,5.1442407]
[1734363878630,0.1342813,106190.0,106160.0,2.789857]
[1734363878839,0.1342813,106190.0,106170.0,2.102056]
[1734363878840,0.26070325,106190.0,106170.0,2.102056]
[1734363879055,0.26070325,106190.0,106170.0,0.0001728]
[1734363879763,0.2606869,106190.0,106170.0,0.0001728]
[1734363879985,0.12641634,106190.0,106170.0,0.0001728]
[1734363880197,0.12641634,106190.0,106170.0,0.0944635]
[1734363880605,0.31111905,106190.0,106170.0,0.0944635]
[1734363880823,0.12642269,106190.0,106170.0,0.0944635]
[1734363881240,0.60559875,106200.0,106170.0,0.0944635]
[1734363881450,0.50559875,106200.0,106180.0,0.698506]
[1734363881661,0.29490485,106200.0,106180.0,0.0942907]
[1734363882075,0.25283268,106190.0,106180.0,0.0942907]
[1734363882281,0.29494099,106200.0,106180.0,2.3653887]
[1734363882495,0.17640328,106200.0,106180.0,0.0942907]
[1734363882707,0.17640328,106200.0,106160.0,0.1265]
[1734363882708,0.22640328,106200.0,106160.0,0.1265]
[1734363882912,0.22640328,106200.0,106170.0,1.5511487]
[1734363883141,0.22640328,106200.0,106180.0,1.33092]
[1734363883346,0.22640328,106200.0,106180.0,1.80182]
[1734363883552,0.39494099,106200.0,106180.0,0.4709]
[1734363883781,0.05,106190.0,106180.0,0.4709]
[1734363883897,0.05,106190.0,106180.0,1.79977]
[1734363884771,0.05,106190.0,106180.0,1.615662]
[1734363885148,0.05,106190.0,106180.0,0.4709]
[1734363885149,0.37339062,106190.0,106180.0,0.4709]
[1734363885362,0.67715665,106190.0,106180.0,0.4709]
[1734363885594,0.1715907,106190.0,106180.0,0.4709]
[1734363885808,0.17276797,106190.0,106180.0,0.4709]
[1734363887087,0.88376403,106190.0,106180.0,0.4709]
[1734363887301,0.2186907,106190.0,106180.0,0.4709]
[1734363887507,0.33800072,106190.0,106180.0,0.4709]
[1734363887929,0.41168085,106190.0,106180.0,0.00078478]
[1734363888140,0.46655374,106190.0,106180.0,0.00078478]
[1734363888344,0.55082889,106190.0,106180.0,0.00078478]
[1734363888552,0.46656947,106190.0,106180.0,0.00078478]
[1734363889620,0.73575047,106190.0,106180.0,0.00078478]
[1734363889832,0.4244858,106190.0,106180.0,0.00078478]
[1734363890047,0.55103715,106190.0,106180.0,0.00078478]
[1734363890278,0.46680212,106190.0,106180.0,0.00078478]
[1734363890513,0.7358838,106190.0,106180.0,0.00078478]
[1734363890731,0.55107935,106190.0,106180.0,0.00078478]
[1734363891153,0.67754624,106190.0,106180.0,0.00078478]
[1734363891369,0.55107935,106190.0,106180.0,0.00078478]
[1734363892038,0.67756551,106190.0,106180.0,0.00078478]
[1734363892248,0.55107935,106190.0,106180.0,0.00078478]
[1734363892710,0.67758191,106190.0,106180.0,0.00078478]
[1734363892925,0.60107935,106190.0,106180.0,0.00078478]
[1734363893128,0.55107935,106190.0,106180.0,0.00078478]
[1734363893330,0.55118622,106190.0,106180.0,0.00078478]
[1734363895072,0.05,106170.0,106120.0,0.037592]
[1734363895278,0.05,106170.0,106130.0,3.5167657]
[1734363895497,0.05,106170.0,106140.0,1.205766]
[1734363895703,0.05,106170.0,106150.0,0.0942907]
[1734363896111,0.13436035,106170.0,106150.0,0.0942907]
[1734363896495,0.08436035,106170.0,106150.0,0.09484751]
[1734363896931,0.13436035,106170.0,106150.0,0.09484751]
[1734363897137,0.08436035,106170.0,106150.0,0.09484751]
[1734363897749,0.08436766,106170.0,106150.0,0.09484751]
[1734363898630,0.13436766,106170.0,106150.0,0.09484751]
[1734363898853,0.506206,106160.0,106150.0,0.09484751]
[1734363899072,0.13437239,106170.0,106150.0,1.13309951]
[1734363899281,0.13437239,106170.0,106150.0,0.09484751]
[1734363900113,0.13437239,106170.0,106160.0,0.46492545]
[1734363900331,0.13437239,106170.0,106150.0,0.09484751]
[1734363900545,0.13437239,106170.0,106160.0,0.969581]
[1734363900759,0.13437239,106170.0,106160.0,0.572403]
[1734363901191,0.13437989,106170.0,106160.0,0.572403]
[1734363901627,0.26094972,106180.0,106160.0,0.8166937]
[1734363901898,0.08437989,106180.0,106170.0,2.320289]
[1734363902106,0.08437989,106180.0,106170.0,1.906746]
[1734363903200,0.08437989,106180.0,106170.0,1.876623]
[1734363903620,0.08437989,106180.0,106170.0,2.0534137]
[1734363903834,0.21103612,106190.0,106170.0,3.6390217]
[1734363904049,0.21103612,106190.0,106180.0,0.908535]
[1734363904257,0.21103612,106190.0,106170.0,0.2220907]
[1734363904453,0.52247537,106180.0,106170.0,0.2220907]
[1734363904690,0.21098972,106180.0,106170.0,0.4386477]
[1734363904909,4e-05,106180.0,106170.0,0.4226747]
[1734363905114,4e-05,106180.0,106170.0,0.2220907]
[1734363905751,4e-05,106180.0,106170.0,1.3417097]
[1734363905963,0.2110759,106180.0,106170.0,1.3417097]
[1734363906169,4e-05,106180.0,106170.0,1.3417097]
[1734363907859,0.20138078,106190.0,106170.0,1.3417097]
[1734363908063,0.20138078,106190.0,106180.0,2.0203407]
[1734363908271,0.20138078,106190.0,106180.0,0.0942907]
[1734363908476,0.20138078,106190.0,106180.0,0.2273147]
[1734363908895,0.20138078,106190.0,106170.0,0.0453]
[1734363909126,0.30138078,106190.0,106170.0,0.2442907]
[1734363909332,0.47015774,106190.0,106170.0,0.2442907]
[1734363909587,0.22658272,106190.0,106170.0,0.2442907]
[1734363909788,0.39543488,106190.0,106170.0,0.2442907]
[1734363910013,0.61482135,106190.0,106170.0,0.2442907]
[1734363910230,0.12665212,106190.0,106180.0,3.1406157]
[1734363910501,0.50664848,106200.0,106180.0,1.1885247]
[1734363910719,0.29556161,106200.0,106190.0,0.356318]
[1734363910923,0.29556161,106200.0,106190.0,0.4319087]
[1734363911342,0.12669212,106200.0,106190.0,0.3902457]
[1734363911554,0.29277786,106200.0,106190.0,0.3902457]
[1734363911765,0.16880527,106200.0,106190.0,0.3902457]
[1734363911968,0.16886085,106200.0,106190.0,0.3902457]
[1734363913460,5.558e-05,106200.0,106190.0,0.0942907]
[1734363913674,5.558e-05,106200.0,106190.0,1.9625547]
[1734363913887,0.16886085,106200.0,106190.0,1.9625547]
[1734363914103,0.19815829,106200.0,106190.0,1.5060067]
[1734363914328,0.16885226,106200.0,106190.0,1.5060067]
[1734363914571,0.16885226,106200.0,106190.0,1.4806317]
[1734363914986,0.16884148,106200.0,106190.0,1.4806317]
[1734363915421,0.16473658,106200.0,106190.0,1.4806317]
[1734363915657,0.59646044,106200.0,106190.0,1.4806317]
[1734363915875,0.21104155,106210.0,106190.0,1.4806317]
[1734363916094,0.21104155,106210.0,106200.0,2.6958007]
[1734363916523,0.52254798,106210.0,106200.0,2.5302267]
[1734363916733,0.21102152,106210.0,106200.0,2.34214385]
[1734363917005,0.21102152,106210.0,106200.0,2.381228]
[1734363917211,0.21102152,106210.0,106200.0,2.121685]
[1734363917648,0.31155302,106210.0,106200.0,2.121685]
[1734363917866,0.34032432,106220.0,106200.0,2.742475]
[1734363918070,0.34032432,106220.0,106200.0,0.62079]
[1734363918689,0.39032432,106220.0,106200.0,0.62079]
[1734363919315,0.39032432,106220.0,106200.0,0.46987833]
[1734363920440,0.126523,106210.0,106200.0,0.46987833]
[1734363920660,0.126523,106210.0,106200.0,1.84160433]
[1734363920863,0.126523,106210.0,106200.0,1.82660433]
[1734363921065,0.126523,106210.0,106200.0,1.79275833]
[1734363921913,0.21086336,106210.0,106200.0,1.81606741]
[1734363922123,0.21086336,106210.0,106200.0,1.76141941]
[1734363922785,0.21086336,106210.0,106200.0,1.45187141]
[1734363922993,0.21082928,106210.0,106200.0,1.42989141]
[1734363923205,0.57223499,106210.0,106200.0,0.49318741]
[1734363923417,0.42958739,106210.0,106200.0,0.49318741]
[1734363923627,0.47387809,106210.0,106200.0,0.49318741]
[1734363923835,0.42900462,106210.0,106200.0,0.49318741]
[1734363924041,0.2180907,106210.0,106200.0,0.49318741]
[1734363924864,0.2180907,106210.0,106200.0,0.49336021]
[1734363925076,0.50271023,106210.0,106200.0,0.49336021]
[1734363925289,0.2181771,106210.0,106200.0,0.49336021]
[1734363925503,0.78264971,106210.0,106200.0,0.47005113]
[1734363925715,0.47129055,106210.0,106200.0,0.47005113]
[1734363926152,0.67129055,106210.0,106200.0,0.47005113]
[1734363926777,0.4181771,106210.0,106200.0,0.47005113]
[1734363928228,0.6847771,106210.0,106200.0,0.47005113]
[1734363929161,0.99254857,106210.0,106200.0,0.39195113]
[1734363929883,0.72594857,106210.0,106200.0,0.0001728]
[1734363930095,0.1,106200.0,106190.0,5.558e-05]
[1734363930306,0.78403954,106200.0,106190.0,5.558e-05]
[1734363930521,0.73286217,106200.0,106190.0,5.558e-05]
[1734363930732,0.68286217,106200.0,106190.0,5.558e-05]
[1734363930945,0.1276,106170.0,106160.0,0.0001728]
[1734363931168,0.43402089,106170.0,106160.0,0.0001728]
[1734363931389,0.4448907,106170.0,106160.0,0.0001728]
[1734363931613,0.64803383,106170.0,106160.0,0.0001728]
[1734363932480,0.64803383,106170.0,106080.0,0.045373]
[1734363932481,0.05,106120.0,106080.0,0.045373]
[1734363932690,0.05,106120.0,106100.0,0.00972387]
[1734363932889,0.05,106120.0,106100.0,0.10401457]
[1734363933354,0.05,106120.0,106100.0,0.00972387]
[1734363933355,0.1,106120.0,106100.0,0.00972387]
[1734363933814,0.1,106120.0,106100.0,0.01028068]
[1734363934888,0.0773,106140.0,106110.0,0.767191]
[1734363935093,0.13434301,106150.0,106120.0,0.0942907]
[1734363935306,0.13434301,106160.0,106130.0,2.893147]
[1734363935512,0.21085753,106170.0,106140.0,2.1500377]
[1734363935720,0.08424381,106170.0,106150.0,0.541711]
[1734363935980,0.08424381,106180.0,106160.0,0.0942907]
[1734363936189,0.47909716,106190.0,106170.0,2.906021]
[1734363936399,0.31060953,106190.0,106170.0,2.860686]
[1734363936609,0.31075098,106190.0,106170.0,2.869972]
[1734363936815,0.31075098,106190.0,106170.0,1.543927]
[1734363937017,0.31075098,106190.0,106160.0,0.0942907]
[1734363937232,0.05,106180.0,106170.0,0.116177]
[1734363937438,0.1342337,106180.0,106160.0,0.0944635]
[1734363937861,0.69000781,106170.0,106160.0,0.0944635]
[1734363938063,0.18423789,106180.0,106160.0,0.9076298]
[1734363938263,0.18423789,106180.0,106160.0,0.0001728]
[1734363939165,0.18423789,106180.0,106160.0,0.0148646]
[1734363939933,0.31059472,106180.0,106160.0,0.0148646]
[1734363940135,0.31059831,106180.0,106160.0,0.0148646]
[1734363940343,0.18423932,106180.0,106160.0,0.0148646]
[1734363941013,0.18423932,106180.0,106160.0,0.02881953]
[1734363942284,0.13423932,106180.0,106160.0,0.02881953]
[1734363942532,0.63984199,106190.0,106170.0,0.8984527]
[1734363942735,0.42924368,106190.0,106180.0,1.101274]
[1734363943145,0.21076503,106190.0,106180.0,1.101274]
[1734363943562,0.21076503,106190.0,106180.0,1.1955647]
[1734363943793,0.08440604,106190.0,106180.0,2.3083807]
[1734363943998,0.00016672,106190.0,106180.0,1.6318807]
[1734363944206,0.00016672,106190.0,106180.0,1.5061377]
[1734363944381,0.52185173,106190.0,106180.0,1.03606894]
[1734363944601,0.00016672,106190.0,106170.0,2.575664]
[1734363944822,0.00016672,106190.0,106170.0,3.9244117]
[1734363945002,0.00016672,106190.0,106180.0,2.467007]
[1734363945154,0.00016672,106190.0,106180.0,1.947101]
[1734363945355,0.00016672,106190.0,106180.0,1.502162]
[1734363946061,0.00016672,106190.0,106180.0,1.477162]
[1734363949658,0.00025322,106190.0,106180.0,1.477162]
[1734363949885,0.00025322,106190.0,106180.0,1.459356]
[1734363950308,0.10025322,106190.0,106180.0,0.01744703]
[1734363950659,0.10025322,106190.0,106160.0,0.0148646]
[1734363950787,0.05,106180.0,106160.0,0.0148646]
[1734363950994,0.1942907,106180.0,106160.0,0.0148646]
[1734363951459,0.29485274,106170.0,106160.0,0.0148646]
[1734363951843,0.21063653,106170.0,106160.0,0.0148646]
[1734363952054,0.20952429,106190.0,106170.0,0.471909]
[1734363952276,0.7400143,106180.0,106170.0,0.471909]
[1734363952497,0.42909638,106180.0,106170.0,0.309339]
[1734363952706,0.42909638,106180.0,106170.0,0.117362]
[1734363952917,0.05,106180.0,106170.0,0.205162]
[1734363953131,0.42909638,106180.0,106170.0,0.205152]
[1734363953541,0.37909638,106180.0,106170.0,0.205152]
[1734363953754,0.05,106200.0,106170.0,0.3985427]
[1734363953978,0.1,106200.0,106180.0,0.151675]
[1734363954200,0.1,106200.0,106170.0,0.09484751]
[1734363954410,0.1,106200.0,106180.0,0.123045]
[1734363954617,0.05,106200.0,106180.0,0.123045]
[1734363955098,0.13428947,106210.0,106190.0,0.0942907]
[1734363955308,0.0500864,106210.0,106200.0,2.791205]
[1734363955512,0.0500864,106210.0,106200.0,2.703116]
[1734363955722,8.64e-05,106210.0,106200.0,2.703116]
[1734363955926,0.0500864,106210.0,106200.0,1.809142]
[1734363956152,0.0500864,106210.0,106200.0,0.481484]
[1734363956367,8.64e-05,106210.0,106200.0,0.456484]
[1734363956571,0.0500864,106210.0,106200.0,0.121273]
[1734363957696,0.0500864,106210.0,106190.0,0.0942907]
[1734363958609,0.0500864,106210.0,106190.0,0.01674442]
[1734363959007,0.0500864,106210.0,106200.0,0.437013]
[1734363959211,0.0500864,106210.0,106190.0,0.901284]
[1734363959439,0.0500864,106210.0,106200.0,0.294024]
[1734363959617,0.0500864,106210.0,106190.0,0.763881]
[1734363960386,0.0500864,106210.0,106190.0,0.693507]
[1734363960592,0.0500864,106210.0,106190.0,0.962639]
[1734363960794,0.0500864,106210.0,106190.0,0.47081]
[1734363961536,0.1,106200.0,106190.0,0.47081]
[1734363961748,0.05,106200.0,106190.0,0.47081]
[1734363962147,0.1,106200.0,106190.0,0.47081]
[1734363963340,0.1785,106200.0,106190.0,0.47081]
[1734363963558,0.30697885,106200.0,106190.0,0.47081]
[1734363963770,0.43327185,106200.0,106190.0,0.47081]
[1734363964193,0.43326109,106200.0,106190.0,0.47081]
[1734363964396,0.38326109,106200.0,106190.0,0.47081]
[1734363964604,0.42535517,106200.0,106190.0,0.47081]
[1734363965440,0.4254738,106200.0,106190.0,0.47081]
[1734363965643,0.4754738,106200.0,106190.0,0.49884845]
[1734363965850,0.2227907,106200.0,106190.0,0.49884845]
[1734363966060,0.4754738,106200.0,106190.0,0.47081]
[1734363966250,0.78640473,106200.0,106190.0,0.47081]
[1734363966459,0.4754738,106200.0,106190.0,0.47081]
[1734363966840,0.4754738,106200.0,106190.0,0.0006212]
[1734363966841,0.91307221,106200.0,106190.0,0.0006212]
[1734363967042,0.60200114,106200.0,106190.0,0.0006212]
[1734363967469,0.60187606,106200.0,106190.0,0.0006212]
[1734363967674,0.50758536,106200.0,106190.0,0.0006212]
[1734363967876,0.37334466,106200.0,106190.0,0.0006212]
[1734363968058,0.21060297,106200.0,106190.0,0.7590512]
[1734363968881,0.21060297,106200.0,106190.0,0.1061212]
[1734363968882,0.54967291,106200.0,106190.0,0.1061212]
[1734363969110,0.26062275,106200.0,106190.0,0.1061212]
[1734363969276,0.26062275,106200.0,106190.0,0.0006212]
[1734363969479,0.35491345,106200.0,106190.0,0.0006212]
[1734363969683,0.46707137,106200.0,106190.0,0.0006212]
[1734363969859,0.84621834,106200.0,106190.0,0.0006212]
[1734363970059,0.38281975,106200.0,106190.0,0.0006212]
[1734363970470,0.55133531,106200.0,106190.0,0.0006212]
[1734363971050,0.1721907,106200.0,106190.0,0.0006212]
[1734363971272,0.1279,106200.0,106190.0,0.0006212]
[1734363971472,0.34498684,106200.0,106190.0,0.7461802]
[1734363971700,0.42923891,106200.0,106190.0,0.4501882]
[1734363971949,0.260675,106200.0,106190.0,0.4501882]
[1734363972191,0.3028492,106200.0,106190.0,0.1241822]
[1734363972441,0.3028492,106200.0,106190.0,0.124355]
[1734363972702,0.21079362,106200.0,106190.0,0.00666401]
[1734363972980,0.21079362,106200.0,106190.0,0.13451201]
[1734363973250,0.26079362,106200.0,106190.0,0.13451201]
[1734363973522,8.64e-05,106200.0,106190.0,0.13451201]
[1734363974838,0.21076835,106200.0,106190.0,0.13451145]
[1734363975360,0.21076835,106200.0,106190.0,0.00666345]
[1734363975886,0.21076835,106200.0,106190.0,0.44450845]
[1734363976130,0.21076835,106200.0,106190.0,0.19600345]
[1734363976377,0.21076835,106200.0,106190.0,0.00666345]
[1734363976581,0.21076835,106200.0,106190.0,0.18435245]
[1734363976790,0.29504113,106200.0,106190.0,0.18435245]
[1734363976998,0.37931391,106200.0,106190.0,0.13026345]
[1734363977627,0.37931391,106200.0,106190.0,0.12026345]
[1734363977835,0.37581344,106200.0,106190.0,0.12026345]
[1734363978050,0.21066405,106200.0,106180.0,0.06798013]
[1734363978264,0.04919124,106200.0,106190.0,0.1647907]
[1734363978473,0.04919124,106200.0,106190.0,2.3571927]
[1734363978685,0.09919124,106200.0,106170.0,0.00055681]
[1734363978925,0.1,106200.0,106180.0,0.128631]
[1734363979152,0.05,106200.0,106180.0,0.147158]
[1734363979359,0.1,106200.0,106180.0,0.147158]
[1734363979569,0.1,106200.0,106170.0,0.0175382]
[1734363980195,0.31061299,106200.0,106170.0,0.0175382]
[1734363980443,0.25283772,106190.0,106170.0,0.0175382]
[1734363980652,0.31090763,106200.0,106180.0,0.120185]
[1734363980857,0.31090763,106200.0,106180.0,0.137567]
[1734363981068,0.1,106190.0,106170.0,0.0175382]
[1734363981770,0.1781,106190.0,106170.0,0.0175382]
[1734363982179,0.2723907,106190.0,106170.0,0.0175382]
[1734363982777,0.1281,106190.0,106170.0,0.0175382]
[1734363982941,0.05,106190.0,106170.0,0.0175382]
[1734363983143,0.1942907,106190.0,106170.0,0.0175382]
[1734363983546,0.56302456,106180.0,106170.0,0.0175382]
[1734363983746,0.44712842,106190.0,106170.0,1.3641492]
[1734363983949,0.34023224,106180.0,106170.0,0.017711]
[1734363984201,0.1942907,106190.0,106170.0,1.360519]
[1734363984480,0.0292801,106180.0,106160.0,0.17455903]
[1734363984686,0.52183095,106170.0,106160.0,0.18988685]
[1734363984835,0.19484672,106190.0,106170.0,1.215005]
[1734363985057,0.00055602,106190.0,106170.0,1.685945]
[1734363985301,0.00055602,106190.0,106180.0,1.585898]
[1734363985575,0.25339374,106190.0,106180.0,1.035775]
[1734363985767,0.00055602,106190.0,106180.0,1.035775]
[1734363986002,0.05,106190.0,106180.0,0.4709]
[1734363986217,0.1942907,106190.0,106180.0,0.4709]
[1734363986431,0.05,106190.0,106180.0,0.4709]
[1734363987585,0.0768864,106200.0,106180.0,0.598901]
[1734363987799,0.0768864,106200.0,106190.0,0.885462]
[1734363987800,0.05019109,106200.0,106190.0,0.885462]
[1734363988013,0.30302881,106200.0,106190.0,0.47085]
[1734363988219,0.13449966,106200.0,106190.0,0.47085]
[1734363988429,0.13449966,106200.0,106190.0,1.495418]
[1734363988639,0.26100599,106200.0,106190.0,1.366129]
[1734363988842,0.26100599,106200.0,106190.0,0.949372]
[1734363989057,0.26100599,106200.0,106190.0,0.938738]
[1734363989690,0.30302881,106200.0,106190.0,0.938738]
[1734363989894,0.30302881,106200.0,106190.0,0.47085]
[1734363989895,0.26102361,106200.0,106190.0,0.47085]
[1734363990104,0.65068033,106200.0,106190.0,0.47085]
[1734363990315,0.56634732,106200.0,106190.0,0.47085]
[1734363990529,0.48198932,106200.0,106190.0,0.47085]
[1734363990939,0.55065534,106200.0,106190.0,0.47085]
[1734363991153,0.59748034,106200.0,106190.0,0.47085]
[1734363991361,0.42881432,106200.0,106190.0,0.47085]
[1734363991570,0.42877169,106200.0,106190.0,0.47085]
[1734363994179,0.59739791,106200.0,106190.0,0.47085]
[1734363994431,0.47092968,106200.0,106190.0,0.47085]
[1734363995982,0.51314984,106200.0,106190.0,0.00059139]
[1734363996434,0.59753062,106200.0,106190.0,0.00059139]
[1734363996644,0.51315005,106200.0,106190.0,0.00059139]
[1734363996845,0.51309794,106200.0,106190.0,0.00059139]
[1734363997714,0.48198076,106200.0,106190.0,0.00059139]
[1734363997938,0.26099006,106200.0,106190.0,0.00059139]
[1734363998333,0.31099006,106200.0,106190.0,0.00059139]
[1734363998540,0.26099006,106200.0,106190.0,0.21398239]
[1734363998959,0.31099006,106200.0,106190.0,0.21398239]
[1734363999374,0.26099006,106200.0,106190.0,0.21398239]
[1734364000225,0.30314779,106200.0,106190.0,0.21398239]
[1734364000632,0.26115016,106200.0,106190.0,0.21398239]
[1734364001104,0.30314779,106200.0,106190.0,0.21398239]
[1734364001316,0.26116891,106200.0,106190.0,0.21398239]
[1734364001531,0.35545961,106200.0,106190.0,0.00059139]
[1734364001751,0.47255997,106200.0,106190.0,0.00646176]
[1734364003667,0.47262393,106200.0,106190.0,0.00646176]
[1734364003877,0.6835826,106200.0,106190.0,0.00646176]
[1734364004085,0.68358294,106200.0,106190.0,0.00059139]
[1734364004315,0.6040074,106200.0,106190.0,0.00646242]
[1734364004770,0.6040074,106200.0,106190.0,0.00059139]
[1734364005828,0.47751265,106200.0,106190.0,0.00059139]
[1734364006648,0.47750605,106200.0,106190.0,0.00059139]
[1734364007059,0.47750605,106200.0,106190.0,0.00076419]
[1734364007060,0.22428179,106200.0,106190.0,0.00076419]
[1734364007267,0.78523129,106200.0,106190.0,0.00076419]
[1734364007478,0.4775825,106200.0,106190.0,0.00076419]
[1734364007913,0.22428179,106200.0,106190.0,0.00076419]
[1734364008168,0.78912074,106200.0,106190.0,0.00076419]
[1734364008431,0.22428179,106200.0,106190.0,0.00076419]
[1734364008669,0.7890969,106200.0,106190.0,0.00076419]
[1734364008877,0.52755175,106200.0,106190.0,0.00076419]
[1734364009104,0.79415175,106200.0,106190.0,0.00076419]
[1734364009326,0.79415175,106200.0,106170.0,0.02439897]
[1734364009327,0.05,106180.0,106170.0,0.02439897]
[1734364009550,0.3166,106170.0,106160.0,0.0001728]
[1734364009780,0.65181697,106170.0,106160.0,0.0001728]
[1734364009998,0.2588,106150.0,106130.0,0.04025646]
[1734364010207,0.60628645,106150.0,106130.0,0.04025646]
[1734364010634,0.2800907,106150.0,106130.0,0.04025646]
[1734364010840,0.49097668,106150.0,106130.0,0.04025646]
[1734364011058,0.56397668,106150.0,106130.0,0.04025646]
[1734364011272,0.3530907,106150.0,106130.0,0.04025646]
[1734364011506,0.45319531,106150.0,106130.0,0.04025646]
[1734364011717,0.40319531,106150.0,106130.0,0.04025646]
[1734364011926,0.65759061,106150.0,106130.0,0.04025646]
[1734364012133,0.82232096,106150.0,106130.0,0.04025646]
[1734364012354,0.9487886,106150.0,106130.0,0.04025646]
[1734364012561,0.7379933,106150.0,106130.0,0.04025646]
[1734364012768,0.35515545,106150.0,106130.0,0.04025646]